bitfinex-derivatives/quotes_BNBF0:USTF0_20250128
["timestamp","ask_amount","ask_price","bid_price","bid_amount"]
[1738081924926,0.27367317,672.05,670.86,1.10983645]
[1738081925125,0.29760133,672.04,670.86,1.10983645]
[1738081925325,0.27367317,672.03,670.84,1.10983645]
[1738081925526,0.29761019,672.02,670.84,1.10983645]
[1738081925725,0.27367317,672.01,670.84,1.10983645]
[1738081926026,1.55506401,672.01,670.84,1.10983645]
[1738081926237,0.27369836,672.0,670.84,1.10983645]
[1738081926926,0.29762347,671.99,670.84,1.10983645]
[1738081927226,0.27369836,671.98,670.84,1.10983645]
[1738081927621,0.29763233,671.97,670.84,1.10983645]
[1738081928025,0.27368766,671.96,670.84,1.10983645]
[1738081928228,0.29764119,671.95,670.84,1.10983645]
[1738081928526,0.27368766,671.94,670.64,1.10983645]
[1738081928827,0.29765005,671.93,670.64,1.10983645]
[1738081929019,0.27368766,671.92,670.64,1.10983645]
[1738081929426,0.29765891,671.91,670.64,1.10983645]
[1738081929625,0.27369584,671.9,670.64,1.10983645]
[1738081930026,0.29766777,671.89,670.64,1.10983645]
[1738081930628,0.27369017,671.88,670.64,1.10983645]
[1738081930931,0.29767663,671.87,670.64,1.10983645]
[1738081931427,0.29767663,671.87,670.58,1.10983645]
[1738081934629,0.27369208,671.86,670.58,1.10983645]
[1738081934830,0.29768549,671.85,670.57,0.29825372]
[1738081935031,0.27369208,671.84,670.57,0.29825372]
[1738081935230,0.29769435,671.83,670.57,0.29825372]
[1738081935423,0.27369208,671.82,670.57,0.29825372]
[1738081936131,1.55537678,671.81,670.57,0.29825372]
[1738081936325,0.27369208,671.8,670.57,0.29825372]
[1738081936526,1.55537678,671.81,670.57,0.29825372]
[1738081936729,0.27371769,671.8,670.57,0.29825372]
[1738081937229,0.29771208,671.79,670.57,0.29825372]
[1738081939030,0.27372225,671.78,670.57,0.29825372]
[1738081939829,0.57143876,671.78,670.57,0.29825372]
[1738081940029,0.27372225,671.77,670.57,0.29825372]
[1738081940223,0.29771651,671.78,670.57,0.29825372]
[1738081940926,0.27372006,671.77,670.57,0.29825372]
[1738081943533,0.29771651,671.78,670.57,0.29825372]
[1738081946029,0.29771651,671.78,670.66,1.10983645]
[1738081947233,0.29771651,671.78,670.67,0.29820925]
[1738081949135,0.29771651,671.78,670.86,1.10983645]
[1738081950336,1.5548961,672.04,670.86,1.10983645]
[1738081952538,1.5548961,672.04,670.85,1.10983645]
[1738081954746,0.27361886,672.03,670.85,1.10983645]
[1738081955233,1.5548961,672.04,670.85,1.10983645]
[1738081955434,0.27361846,672.03,670.85,1.10983645]
[1738081956038,0.27361846,672.03,670.27,2.10106208]
[1738081956039,0.27361846,672.03,670.8,1.10983645]
[1738081957543,1.5548961,672.04,670.8,1.10983645]
[1738081957743,0.2736177,672.03,670.8,1.10983645]
[1738081958243,0.2736177,672.03,670.85,1.10983645]
[1738081961044,0.27362564,672.02,670.87,1.10983645]
[1738081961247,0.27362564,672.01,670.87,1.10983645]
[1738081961444,0.27362564,672.0,670.87,1.10983645]
[1738081961747,0.27362564,671.99,670.87,1.10983645]
[1738081961946,0.27362564,672.03,670.87,1.10983645]
[1738081962239,1.5548961,672.04,670.87,1.10983645]
[1738081963449,1.5548961,672.04,670.86,1.10983645]
[1738081964947,1.10245073,672.3,670.86,1.10983645]
[1738081965248,1.55461825,672.16,670.86,1.10983645]
[1738081965548,1.10245073,672.3,670.86,1.10983645]
[1738081965748,1.5545488,672.15,670.86,1.10983645]
[1738081965947,0.27355682,672.29,670.33,0.71939176]
[1738081965948,1.10245073,672.6,670.81,1.10983645]
[1738081966143,0.2735584,672.59,670.81,1.10983645]
[1738081967044,0.2735584,672.58,670.81,1.10983645]
[1738081967244,1.55432315,672.58,670.81,1.10983645]
[1738081967447,0.2735584,672.57,670.81,1.10983645]
[1738081968750,0.2735584,672.56,670.81,1.10983645]
[1738081968949,0.2735584,672.55,670.89,1.10983645]
[1738081969145,0.2735584,672.54,670.89,1.10983645]
[1738081969350,0.2735584,672.53,670.89,1.10983645]
[1738081969551,0.2735584,672.56,670.89,1.10983645]
[1738081969751,0.2735905,672.55,670.89,1.10983645]
[1738081969948,0.2735905,672.54,670.89,1.10983645]
[1738081970150,0.2735905,672.53,670.89,1.10983645]
[1738081970351,0.2735905,672.52,670.89,1.10983645]
[1738081970754,0.2735905,672.51,670.89,1.10983645]
[1738081971054,0.2735905,672.5,670.89,1.10983645]
[1738081971353,0.71751531,672.57,670.35,2.1020628]
[1738081971354,1.10245073,672.45,670.86,1.10983645]
[1738081971649,0.2735905,672.44,670.86,1.10983645]
[1738081974257,1.10245073,672.43,670.9,1.10983645]
[1738081974451,0.29743757,672.41,670.9,1.10983645]
[1738081974651,0.2735905,672.4,670.9,1.10983645]
[1738081975253,0.29745084,672.38,670.9,1.10983645]
[1738081975757,0.27357179,672.37,670.9,1.10983645]
[1738081976352,0.29746411,672.35,670.9,1.10983645]
[1738081976552,0.27357179,672.34,670.9,1.10983645]
[1738081976756,0.29747296,672.33,670.9,1.10983645]
[1738081976953,0.27357179,672.32,670.9,1.10983645]
[1738081977163,0.57104383,672.31,670.9,1.10983645]
[1738081977352,0.57104826,672.3,670.9,1.10983645]
[1738081977660,0.27356202,672.29,671.01,1.10983645]
[1738081978051,0.29749509,672.28,671.01,1.10983645]
[1738081978250,0.27356202,672.27,671.01,1.10983645]
[1738081978455,0.29750394,672.26,671.01,1.10983645]
[1738081978654,0.27356202,672.25,671.01,1.10983645]
[1738081978857,0.57107038,672.25,671.01,1.10983645]
[1738081979059,0.27356202,672.24,671.01,1.10983645]
[1738081981354,0.27356202,672.24,671.2,1.10983645]
[1738081981754,0.29750836,672.25,671.2,1.10983645]
[1738081981959,0.27354352,672.24,671.2,1.10983645]
[1738081983662,0.29750836,672.25,671.2,1.10983645]
[1738081984165,0.29750836,672.25,671.22,1.10983645]
[1738081987962,0.29750836,672.25,671.27,1.10983645]
[1738081991076,0.29750836,672.25,670.93,1.10983645]
[1738081991272,0.29750836,672.25,670.94,0.29808924]
[1738081999575,0.29750836,672.25,671.15,1.10983645]
[1738082003177,0.29750836,672.25,671.31,1.10983645]
[1738082005980,0.29750836,672.25,671.2,1.10983645]
[1738082009183,0.29750836,672.25,671.12,1.10983645]
[1738082010977,1.55428844,672.24,671.12,1.10983645]
[1738082011479,0.27356487,672.23,671.12,1.10983645]
[1738082012378,1.55439836,672.22,671.12,1.10983645]
[1738082012576,0.27358069,672.21,671.13,1.10983645]
[1738082014181,1.55439836,672.22,671.13,1.10983645]
[1738082014373,0.27361116,672.21,671.13,1.10983645]
[1738082015789,1.82820626,672.2,671.13,1.10983645]
[1738082015978,0.27361116,672.19,671.13,1.10983645]
[1738082016486,0.27361116,672.19,670.98,1.10983645]
[1738082017280,1.55474559,672.18,670.94,0.29808924]
[1738082018082,1.55474559,672.18,668.63,6.71939447]
[1738082018883,1.55474559,672.18,668.8,0.29904306]
[1738082019579,0.27366582,672.17,668.8,0.29904306]
[1738082020581,0.29755262,672.15,670.3,1.11065449]
[1738082020786,0.27366582,672.14,670.31,0.29836941]
[1738082021486,0.29756591,672.12,670.31,0.29836941]
[1738082021685,0.27366582,672.11,670.31,0.29836941]
[1738082022387,0.29757919,672.09,670.31,0.29836941]
[1738082022582,0.27366582,672.08,670.31,0.29836941]
[1738082022787,0.29759247,672.06,670.31,0.29836941]
[1738082022981,0.27366582,672.05,670.31,0.29836941]
[1738082023387,0.29760576,672.03,670.31,0.29836941]
[1738082023588,0.27366582,672.02,670.54,1.11065449]
[1738082023991,0.29761461,672.01,670.54,1.11065449]
[1738082024188,0.27366582,672.0,670.54,1.11065449]
[1738082024389,0.27368578,671.99,670.54,1.11065449]
[1738082024583,0.27368578,671.98,670.54,1.11065449]
[1738082024786,0.27368578,671.97,670.54,1.11065449]
[1738082024983,0.27368976,671.96,670.54,1.11065449]
[1738082025182,0.27368976,671.95,670.54,1.11065449]
[1738082025383,0.27368976,672.0,670.54,1.11065449]
[1738082025588,0.27368976,671.99,670.54,1.11065449]
[1738082025789,0.27368976,671.98,670.54,1.11065449]
[1738082025989,0.29763233,671.97,670.54,1.11065449]
[1738082026189,0.27368976,671.96,670.54,1.11065449]
[1738082026389,0.29764119,671.95,670.54,1.11065449]
[1738082026586,0.27368976,671.94,670.54,1.11065449]
[1738082026989,0.29765005,671.93,670.61,1.11065449]
[1738082027186,0.27368976,671.92,670.61,1.11065449]
[1738082027589,1.55522038,671.91,670.61,1.11065449]
[1738082027789,0.27368976,671.9,670.61,1.11065449]
[1738082028286,0.29766777,671.89,670.61,1.11065449]
[1738082028493,0.27368976,671.88,670.61,1.11065449]
[1738082028692,0.29767663,671.87,670.61,1.11065449]
[1738082028986,0.27368976,671.86,670.61,1.11065449]
[1738082029193,0.29768549,671.85,670.61,1.11065449]
[1738082029388,0.27368976,671.84,670.61,1.11065449]
[1738082029598,0.27367799,671.83,670.61,1.11065449]
[1738082029802,0.27367799,671.82,670.61,1.11065449]
[1738082030100,0.27367799,671.81,670.61,1.11065449]
[1738082030293,0.27367799,671.8,670.61,1.11065449]
[1738082030493,0.29768549,671.85,670.61,1.11065449]
[1738082030900,0.27368808,671.84,670.61,1.11065449]
[1738082031300,0.27368236,671.83,670.61,1.11065449]
[1738082031502,0.27368236,671.84,670.61,1.11065449]
[1738082031801,0.27368236,671.83,670.61,1.11065449]
[1738082032002,0.29768549,671.85,670.31,0.29836941]
[1738082032003,0.27368236,671.84,670.49,1.11065449]
[1738082032197,0.27368236,671.83,670.49,1.11065449]
[1738082032398,0.27368236,671.84,670.49,1.11065449]
[1738082032600,0.27368236,671.83,670.49,1.11065449]
[1738082032808,0.27368236,671.84,670.5,0.29828486]
[1738082032998,0.27368236,671.82,670.5,0.29828486]
[1738082033200,0.27368236,671.81,670.5,0.29828486]
[1738082033399,0.27368236,671.8,670.5,0.29828486]
[1738082033704,0.27368236,671.79,670.5,0.29828486]
[1738082033905,0.27368236,671.78,670.5,0.29828486]
[1738082034203,0.27368236,671.77,670.5,0.29828486]
[1738082034397,0.27368236,671.84,670.5,0.29828486]
[1738082034601,0.27368236,671.83,670.5,0.29828486]
[1738082034900,0.29768992,671.84,670.5,0.29828486]
[1738082035102,0.27368702,671.83,670.5,0.29828486]
[1738082037705,0.27368102,671.82,670.5,0.29828486]
[1738082037906,1.55538257,671.82,670.5,0.29828486]
[1738082038408,0.27368102,671.81,670.5,0.29828486]
[1738082038603,1.55538257,671.82,670.5,0.29828486]
[1738082040407,0.27368413,671.81,670.6,1.11065449]
[1738082041512,1.55538257,671.82,670.6,1.11065449]
[1738082042611,0.29768992,671.84,670.6,1.11065449]
[1738082043114,0.29768992,671.84,670.7,1.11065449]
[1738082045312,0.29768992,671.84,670.69,1.11065449]
[1738082048214,0.29768992,671.84,670.81,1.11065449]
[1738082051614,0.29768992,671.84,670.82,1.11065449]
[1738082056514,0.29768992,671.84,670.88,1.11065449]
[1738082059315,0.29768992,671.84,670.81,1.11065449]
[1738082062821,0.29768992,671.84,670.88,1.11065449]
[1738082065422,0.29768992,671.84,670.8,1.11065449]
[1738082068426,0.29768992,671.84,670.81,1.11065449]
[1738082069628,1.55501769,671.83,670.81,1.11065449]
[1738082070828,1.55501769,671.83,670.8,1.11065449]
[1738082074627,1.55501769,671.83,670.7,1.11065449]
[1738082075328,0.29768992,671.84,670.7,1.11065449]
[1738082076731,0.29768992,671.84,670.97,1.11065449]
[1738082079638,0.29768992,671.84,671.07,1.11065449]
[1738082082641,0.29768992,671.84,671.08,1.11065449]
[1738082084341,0.29768992,671.84,671.02,1.11065449]
[1738082087845,0.29768992,671.84,670.82,1.11065449]
[1738082087846,0.29768992,671.84,671.08,1.11065449]
[1738082090343,0.29768992,671.84,671.03,1.11065449]
[1738082093351,0.29768992,671.84,670.53,0.72145387]
[1738082093352,0.29768992,671.84,670.89,1.11065449]
[1738082095753,1.55493084,671.83,670.89,1.11065449]
[1738082097154,1.55493084,671.83,670.81,1.11065449]
[1738082099950,1.55493084,671.83,670.86,1.11065449]
[1738082101656,0.2737427,671.82,670.86,1.11065449]
[1738082103059,0.2737427,671.82,670.74,1.11065449]
[1738082103256,1.55493084,671.83,670.74,1.11065449]
[1738082104459,1.55493084,671.83,670.52,0.29827596]
[1738082105758,0.29770321,671.81,670.52,0.29827596]
[1738082109562,1.55573603,671.8,670.52,0.29827596]
[1738082110162,0.29771651,671.78,670.52,0.29827596]
[1738082110463,0.29771651,671.78,670.31,1.11194719]
[1738082110659,0.27378517,671.77,670.31,1.11194719]
[1738082111062,0.29772981,671.75,670.31,1.11194719]
[1738082111259,0.27378517,671.74,670.22,1.11194719]
[1738082111764,0.29772981,671.75,670.22,1.11194719]
[1738082111968,0.27385716,671.74,670.22,1.11194719]
[1738082112167,0.2977431,671.72,670.22,1.11194719]
[1738082112367,0.27385716,671.71,670.22,1.11194719]
[1738082112567,0.2977564,671.69,670.22,1.11194719]
[1738082112768,0.27385716,671.68,670.22,1.11194719]
[1738082112971,0.2977697,671.66,670.22,1.11194719]
[1738082113163,0.27385716,671.65,670.22,1.11194719]
[1738082113367,0.25906323,671.65,670.22,1.11194719]
[1738082113763,0.297783,671.63,670.22,1.11194719]
[1738082114368,0.27386182,671.62,670.22,1.11194719]
[1738082114567,0.2977963,671.6,670.22,1.11194719]
[1738082114769,0.2977963,671.6,670.14,1.11194719]
[1738082114770,0.27386182,671.59,670.14,1.11194719]
[1738082115065,0.29780961,671.57,670.14,1.11194719]
[1738082115271,0.27386119,671.56,670.14,1.11194719]
[1738082115664,0.29781847,671.55,670.14,1.11194719]
[1738082115865,0.27386119,671.54,670.14,1.11194719]
[1738082116070,0.29782734,671.53,670.14,1.11194719]
[1738082116365,0.27386119,671.52,670.14,1.11194719]
[1738082116570,0.29783621,671.51,670.14,1.11194719]
[1738082116764,0.27386119,671.5,670.14,1.11194719]
[1738082116975,0.57169052,671.49,670.14,1.11194719]
[1738082117165,0.57169495,671.48,669.96,1.11194719]
[1738082117367,0.27384543,671.47,669.96,1.11194719]
[1738082117769,0.29785839,671.46,669.97,0.29852082]
[1738082117968,0.27384543,671.45,669.97,0.29852082]
[1738082118169,0.29786727,671.44,669.97,0.29852082]
[1738082119766,1.55618243,671.43,669.97,0.29852082]
[1738082119966,0.29787614,671.42,669.97,0.29852082]
[1738082120273,0.29787614,671.42,669.97,1.41046801]
[1738082123674,0.29787614,671.42,669.97,0.29852082]
[1738082127274,0.29787614,671.42,670.23,1.11194719]
[1738082127776,0.29787614,671.42,670.24,0.29840057]
[1738082129678,0.29787614,671.42,670.44,1.11194719]
[1738082132580,0.29787614,671.42,670.56,1.11194719]
[1738082134372,1.5554463,671.72,670.56,1.11194719]
[1738082135276,1.10317673,672.37,670.56,1.11194719]
[1738082135482,1.5553594,671.77,670.56,1.11194719]
[1738082135681,0.29746411,672.35,670.56,1.11194719]
[1738082135982,1.55533043,671.77,670.64,1.11194719]
[1738082136181,0.71627181,672.18,670.64,1.11194719]
[1738082136482,0.2975482,672.16,670.64,1.11194719]
[1738082136783,0.27368569,672.15,670.64,1.11194719]
[1738082136976,0.29756148,672.13,670.64,1.11194719]
[1738082137178,0.27368569,672.12,670.64,1.11194719]
[1738082137379,0.29757476,672.1,670.64,1.11194719]
[1738082137580,0.27368569,672.09,670.64,1.11194719]
[1738082137781,0.29758804,672.07,670.64,1.11194719]
[1738082137978,0.27368569,672.06,670.64,1.11194719]
[1738082138378,0.29760133,672.04,670.64,1.11194719]
[1738082138577,0.27368569,672.03,670.64,1.11194719]
[1738082138777,0.29761019,672.02,670.64,1.11194719]
[1738082138975,0.27368569,672.01,670.64,1.11194719]
[1738082139181,0.29761904,672.0,670.64,1.11194719]
[1738082139378,0.27368569,671.99,670.66,1.11194719]
[1738082139578,0.2976279,671.98,670.66,1.11194719]
[1738082139779,0.27368569,671.97,670.66,1.11194719]
[1738082139982,0.29763676,671.96,670.66,1.11194719]
[1738082140177,0.27368569,671.95,670.66,1.11194719]
[1738082140381,0.29764562,671.94,670.66,1.11194719]
[1738082140582,0.27368569,671.93,670.66,1.11194719]
[1738082140783,0.29765448,671.92,670.66,1.11194719]
[1738082140983,0.27368569,671.91,670.66,1.11194719]
[1738082142184,0.27370975,671.9,670.55,1.11194719]
[1738082142384,0.27370975,671.91,670.55,1.11194719]
[1738082143784,0.27373468,671.9,670.55,1.11194719]
[1738082143984,0.27373468,671.91,670.55,1.11194719]
[1738082144284,0.27373468,671.9,670.55,1.11194719]
[1738082144478,0.27373468,671.89,670.55,1.11194719]
[1738082144681,0.27373468,671.91,670.55,1.11194719]
[1738082144878,0.27373468,671.9,670.55,1.11194719]
[1738082145078,0.27373468,671.89,670.39,1.11194719]
[1738082145283,0.27373468,671.91,670.39,1.11194719]
[1738082145485,0.27376453,671.9,670.39,1.11194719]
[1738082145683,0.27376453,671.91,670.39,1.11194719]
[1738082146386,0.29766777,671.89,670.39,1.11194719]
[1738082146582,0.27376453,671.88,670.39,1.11194719]
[1738082146787,0.29768106,671.86,670.39,1.11194719]
[1738082147086,0.27376453,671.85,670.39,1.11194719]
[1738082147688,0.29769435,671.83,670.39,1.11194719]
[1738082147886,0.27376453,671.82,670.39,1.11194719]
[1738082148287,0.29770321,671.81,670.39,1.11194719]
[1738082148687,0.27378789,671.8,670.3,1.11194719]
[1738082148982,0.27380244,671.79,670.3,1.11194719]
[1738082149187,0.27380244,671.78,670.3,1.11194719]
[1738082149488,0.29770321,671.81,670.3,1.11194719]
[1738082149489,0.27380244,671.77,670.3,1.11194719]
[1738082149682,0.27380244,671.76,670.3,1.11194719]
[1738082149987,0.27380244,671.75,670.3,1.11194719]
[1738082150187,0.27380244,671.8,670.3,1.11194719]
[1738082150488,0.29771651,671.78,670.3,1.11194719]
[1738082150688,0.27380244,671.77,670.3,1.11194719]
[1738082150890,0.29771651,671.78,670.3,1.11194719]
[1738082151388,0.29771651,671.78,670.24,0.29840057]
[1738082152184,0.27382448,671.77,670.24,0.29840057]
[1738082153189,0.29771651,671.78,670.24,0.29840057]
[1738082153489,0.2738433,671.77,670.24,0.29840057]
[1738082154993,0.29772981,671.75,670.24,0.29840057]
[1738082155285,0.27383222,671.74,670.24,0.29840057]
[1738082155492,0.2977431,671.72,670.24,0.29840057]
[1738082155791,0.27380645,671.71,670.24,0.29840057]
[1738082156892,0.29775197,671.7,670.24,0.29840057]
[1738082157093,0.27380645,671.69,670.24,0.29840057]
[1738082157292,0.29776083,671.68,670.24,0.29840057]
[1738082157489,0.27380645,671.67,670.24,0.29840057]
[1738082157991,1.853726,671.66,670.24,0.29840057]
[1738082158188,0.57158058,671.65,670.4,1.11194719]
[1738082158392,0.57158502,671.64,670.4,1.11194719]
[1738082158594,0.27380645,671.63,670.4,1.11194719]
[1738082159096,0.29777857,671.64,670.4,1.11194719]
[1738082159291,0.27376631,671.63,670.4,1.11194719]
[1738082160892,0.29777857,671.64,670.4,1.11194719]
[1738082161089,0.29777857,671.64,670.48,1.11194719]
[1738082161288,0.27381919,671.63,670.48,1.11194719]
[1738082162094,0.29778743,671.62,670.48,1.11194719]
[1738082162289,0.27381919,671.61,670.48,1.11194719]
[1738082162688,0.29778743,671.62,670.48,1.11194719]
[1738082162892,0.2738209,671.61,670.48,1.11194719]
[1738082164097,0.2977963,671.6,670.27,1.11194719]
[1738082164296,0.2738209,671.59,670.27,1.11194719]
[1738082164595,0.57162929,671.58,670.27,1.11194719]
[1738082164795,0.57163373,671.57,670.27,1.11194719]
[1738082164997,0.57163816,671.56,670.27,1.11194719]
[1738082165298,0.57164259,671.55,670.27,1.11194719]
[1738082165496,0.57164703,671.54,670.27,1.11194719]
[1738082165698,0.27382412,671.53,670.27,1.11194719]
[1738082165897,0.57165146,671.53,670.27,1.11194719]
[1738082166098,0.27381809,671.52,670.27,1.11194719]
[1738082166299,0.29782734,671.53,670.27,1.11194719]
[1738082166997,0.29782734,671.53,670.28,1.11194719]
[1738082167498,0.27381059,671.52,670.28,1.11194719]
[1738082168294,1.55606066,671.51,670.28,1.11194719]
[1738082168494,0.27381059,671.5,670.28,1.11194719]
[1738082169200,1.85389687,671.51,670.28,1.11194719]
[1738082169700,0.2738637,671.5,670.28,1.11194719]
[1738082169998,0.2738637,671.5,670.3,1.11194719]
[1738082172095,1.85389687,671.51,670.3,1.11194719]
[1738082172301,0.27387348,671.5,670.3,1.11194719]
[1738082172898,0.27387348,671.5,670.24,0.29840057]
[1738082173501,1.85389687,671.51,670.24,0.29840057]
[1738082174805,0.57170984,671.5,670.24,0.29840057]
[1738082175002,0.29784509,671.49,670.24,0.29840057]
[1738082175203,0.27387214,671.48,670.24,0.29840057]
[1738082175902,0.29784509,671.49,670.24,0.29840057]
[1738082181704,0.27386222,671.48,670.24,0.29840057]
[1738082181907,0.29784509,671.49,670.24,0.29840057]
[1738082183604,0.27386837,671.48,670.24,0.29840057]
[1738082183805,0.29785396,671.47,670.24,0.29840057]
[1738082184205,0.27386873,671.46,670.24,0.29840057]
[1738082184406,0.29786283,671.45,670.24,0.29840057]
[1738082184812,0.29786283,671.45,670.29,1.11194719]
[1738082185011,1.55632743,671.44,670.29,1.11194719]
[1738082185207,0.2978717,671.43,670.29,1.11194719]
[1738082186910,0.27387142,671.42,670.29,1.11194719]
[1738082187111,0.29788057,671.41,670.29,1.11194719]
[1738082187311,0.27387142,671.4,670.29,1.11194719]
[1738082187507,0.27387142,671.4,670.24,0.29840057]
[1738082187508,0.29788945,671.39,670.25,1.11194719]
[1738082187708,0.27387142,671.38,670.25,1.11194719]
[1738082188110,0.27387145,671.37,670.25,1.11194719]
[1738082188407,0.27387145,671.36,670.25,1.11194719]
[1738082188612,0.27387145,671.38,670.25,1.11194719]
[1738082188807,0.27387145,671.37,670.25,1.11194719]
[1738082189006,0.27387145,671.36,670.25,1.11194719]
[1738082189207,0.27387145,671.35,670.25,1.11194719]
[1738082189405,1.55632743,671.44,670.25,1.11194719]
[1738082189609,0.27387163,671.43,670.25,1.11194719]
[1738082189911,0.27387163,671.43,670.29,1.11194719]
[1738082191008,0.27387163,671.43,669.72,2.98612234]
[1738082191009,0.27387163,671.43,669.73,2.10302783]
[1738082191415,0.27387163,671.43,669.72,2.98612234]
[1738082192517,0.27387163,671.43,668.05,3.7323528]
[1738082192518,0.27387163,671.43,668.06,3.7323528]
[1738082192714,1.55632743,671.44,668.07,2.10302783]
[1738082192910,1.55632743,671.44,670.29,1.1136538]
[1738082195518,1.55632743,671.44,670.35,1.1136538]
[1738082197121,0.27386505,671.43,670.35,1.1136538]
[1738082197322,1.55632743,671.44,670.35,1.1136538]
[1738082197523,0.27386507,671.43,670.35,1.1136538]
[1738082197822,1.55632743,671.44,670.35,1.1136538]
[1738082198221,1.55632743,671.44,670.43,1.1136538]
[1738082201526,1.10331477,671.82,670.27,1.1136538]
[1738082201721,0.27380683,671.81,670.27,1.1136538]
[1738082204126,1.10331477,671.8,670.62,1.1136538]
[1738082204424,0.27380683,671.79,670.62,1.1136538]
[1738082205425,1.55569546,671.78,670.62,1.1136538]
[1738082205628,0.27380683,671.77,670.62,1.1136538]
[1738082206728,1.10331477,671.67,670.5,1.1136538]
[1738082206921,0.27380683,671.66,670.5,1.1136538]
[1738082208324,1.10331477,671.67,670.5,1.1136538]
[1738082208528,0.27382276,671.66,670.5,1.1136538]
[1738082209528,0.27382276,671.66,670.05,3.44308912]
[1738082209529,0.27382276,671.66,670.49,1.1136538]
[1738082209828,1.10331477,671.68,670.49,1.1136538]
[1738082209829,0.27382276,671.65,670.49,1.1136538]
[1738082210029,1.10331477,671.68,670.49,1.1136538]
[1738082210222,0.27385717,671.67,670.49,1.1136538]
[1738082212222,1.10331477,671.68,670.49,1.1136538]
[1738082213024,0.27386889,671.66,670.49,1.1136538]
[1738082213229,0.27386889,671.65,670.49,1.1136538]
[1738082213430,0.27386889,671.64,670.49,1.1136538]
[1738082213629,0.27386889,671.67,670.49,1.1136538]
[1738082213931,0.27386889,671.66,670.14,1.1136538]
[1738082214132,0.27386889,671.65,670.14,1.1136538]
[1738082214430,0.27386264,671.64,670.14,1.1136538]
[1738082214733,0.27386264,671.63,670.14,1.1136538]
[1738082215029,0.27386264,671.62,670.14,1.1136538]
[1738082215223,1.10331477,671.75,670.14,1.1136538]
[1738082215427,0.27385357,671.74,670.14,1.1136538]
[1738082215627,1.55608386,671.61,670.14,1.1136538]
[1738082215824,1.10331477,671.75,670.14,1.1136538]
[1738082216023,1.55616504,671.6,670.14,1.1136538]
[1738082216223,0.29780074,671.59,670.14,1.1136538]
[1738082216627,0.2738553,671.58,670.14,1.1136538]
[1738082216825,0.29780961,671.57,670.14,1.1136538]
[1738082217128,0.2738553,671.56,670.17,1.1136538]
[1738082217524,1.85398931,671.55,670.17,1.1136538]
[1738082217728,0.2738553,671.54,670.17,1.1136538]
[1738082218533,0.29782734,671.53,670.17,1.1136538]
[1738082218733,0.2738553,671.52,670.17,1.1136538]
[1738082219232,0.29783621,671.51,670.17,1.1136538]
[1738082219432,0.2738553,671.5,670.17,1.1136538]
[1738082220031,0.29784509,671.49,670.42,1.1136538]
[1738082220232,0.2738553,671.48,670.42,1.1136538]
[1738082220636,0.29785396,671.47,670.42,1.1136538]
[1738082220828,0.2738553,671.46,670.42,1.1136538]
[1738082221028,0.29786283,671.45,670.42,1.1136538]
[1738082222934,0.29786283,671.45,669.9,2.99559843]
[1738082222935,0.29786283,671.45,670.3,1.1136538]
[1738082225638,0.29786283,671.45,670.31,0.29836941]
[1738082226838,0.29786283,671.45,670.53,1.1136538]
[1738082229638,0.29786283,671.45,670.31,0.29836941]
[1738082229639,0.29786283,671.45,670.57,1.1136538]
[1738082231134,0.27386084,671.44,670.57,1.1136538]
[1738082232540,1.10331477,671.84,670.31,0.29836941]
[1738082232737,1.55551003,671.79,670.31,0.29836941]
[1738082233736,0.29771651,671.78,670.31,0.29836941]
[1738082235138,0.29771651,671.78,670.43,1.1136538]
[1738082238344,0.29771651,671.78,670.45,1.1136538]
[1738082241142,0.29771651,671.78,670.43,1.1136538]
[1738082243846,0.27372597,671.77,670.46,1.1136538]
[1738082244047,0.29772537,671.76,670.46,1.1136538]
[1738082244346,0.27372597,671.75,670.46,1.1136538]
[1738082244546,0.29773424,671.74,670.46,1.1136538]
[1738082244742,0.27372597,671.73,670.46,1.1136538]
[1738082245448,1.55555638,671.72,670.46,1.1136538]
[1738082247549,0.29774753,671.71,670.48,1.1136538]
[1738082250349,0.29774753,671.71,670.31,0.29836941]
[1738082252746,0.27378721,671.7,670.31,0.29836941]
[1738082252947,0.27379018,671.69,670.31,0.29836941]
[1738082253147,0.27379018,671.7,670.31,0.29836941]
[1738082253349,0.27379018,671.69,670.31,0.29836941]
[1738082253548,0.27379018,671.7,670.31,0.29836941]
[1738082253742,0.27379018,671.69,670.31,0.29836941]
[1738082253942,0.27379018,671.68,670.31,0.29836941]
[1738082254144,0.27379018,671.67,670.36,1.1136538]
[1738082254451,0.27379018,671.7,670.36,1.1136538]
[1738082254646,1.55555638,671.72,670.36,1.1136538]
[1738082254647,0.29776083,671.68,670.36,1.1136538]
[1738082254843,0.27379018,671.67,670.36,1.1136538]
[1738082255246,0.29777413,671.65,670.36,1.1136538]
[1738082255450,0.27379018,671.64,670.36,1.1136538]
[1738082255946,0.29778743,671.62,670.36,1.1136538]
[1738082256153,0.27379018,671.61,670.36,1.1136538]
[1738082256450,0.57163483,671.6,670.36,1.1136538]
[1738082256645,0.57163927,671.59,670.36,1.1136538]
[1738082256850,0.5716437,671.58,670.36,1.1136538]
[1738082257050,0.27383853,671.57,670.36,1.1136538]
[1738082257251,0.29781404,671.56,670.36,1.1136538]
[1738082257447,0.27383853,671.55,670.36,1.1136538]
[1738082257648,0.29782291,671.54,670.44,1.1136538]
[1738082257844,0.27383853,671.53,670.44,1.1136538]
[1738082258046,0.29783178,671.52,670.44,1.1136538]